[Event "Juniorallsvenskan 2019, Division 1 and 2"]
[Site "Molnlycke kulturhus, Biblioteksgatan 2, Molnlycke, Sweden"]
[Date "2019.11.24"]
[Round "5.19"]
[White "Ostenfeld, Valentin"]
[Black "Rosenthal, Emanuel"]
[Result "1-0"]
[TimeControl "90 minutes + 30 seconds per move from move one"]
[WhiteFideId "1759183"]
[BlackFideId "1738852"]
[WhiteElo "1856"]
[BlackElo "1703"]

1. d4 {[%clk 01:30:48]} {[%emt 00:00:11]} Nf6 {[%clk 01:30:28]} {[%emt
00:00:32]} 2. c4 {[%clk 01:31:08]} {[%emt 00:00:11]} d6 {[%clk 01:27:55]}
{[%emt 00:03:03]} 3. Nc3 {[%clk 01:31:23]} {[%emt 00:00:15]} g6 {[%clk
01:28:17]} {[%emt 00:00:08]} 4. e4 {[%clk 01:31:47]} {[%emt 00:00:06]} Bg7
{[%clk 01:28:41]} {[%emt 00:00:07]} 5. Nf3 {[%clk 01:32:01]} {[%emt 00:00:15]}
O-O {[%clk 01:29:04]} {[%emt 00:00:07]} 6. Be2 {[%clk 01:32:11]} {[%emt
00:00:18]} e5 {[%clk 01:27:07]} {[%emt 00:02:30]} 7. dxe5 {[%clk 01:31:35]}
{[%emt 00:01:05]} dxe5 {[%clk 01:27:13]} {[%emt 00:00:24]} 8. O-O {[%clk
01:31:50]} {[%emt 00:00:14]} Nh5 {[%clk 01:24:11]} {[%emt 00:03:32]} 9. Bg5
{[%clk 01:26:25]} {[%emt 00:05:55]} f6 {[%clk 01:24:07]} {[%emt 00:00:35]} 10.
Be3 {[%clk 01:26:45]} {[%emt 00:00:09]} Be6 {[%clk 01:22:24]} {[%emt 00:02:13]}
11. Ne1 {[%clk 01:25:39]} {[%emt 00:01:36]} Nf4 {[%clk 01:22:11]} {[%emt
00:00:44]} 12. Bxf4 {[%clk 01:25:23]} {[%emt 00:00:46]} exf4 {[%clk 01:22:34]}
{[%emt 00:00:08]} 13. Qxd8 {[%clk 01:25:20]} {[%emt 00:00:32]} Rxd8 {[%clk
01:22:54]} {[%emt 00:00:10]} 14. Nd5 {[%clk 01:25:41]} {[%emt 00:00:08]} Bxd5
{[%clk 01:18:56]} {[%emt 00:04:29]} 15. cxd5 {[%clk 01:26:06]} {[%emt
00:00:06]} Re8 {[%clk 01:16:24]} {[%emt 00:03:02]} 16. Bf3 {[%clk 01:23:07]}
{[%emt 00:03:27]} a5 {[%clk 01:12:23]} {[%emt 00:04:32]} 17. Nd3 {[%clk
01:23:07]} {[%emt 00:00:30]} g5 {[%clk 01:11:18]} {[%emt 00:01:34]} 18. Nc5
{[%clk 01:22:52]} {[%emt 00:00:44]} b6 {[%clk 01:10:49]} {[%emt 00:01:01]} 19.
Ne6 {[%clk 01:22:59]} {[%emt 00:00:22]} Re7 {[%clk 01:10:22]} {[%emt 00:00:57]}
20. Rac1 {[%clk 01:22:04]} {[%emt 00:01:23]} Na6 {[%clk 01:09:03]} {[%emt
00:01:52]} 21. Be2 {[%clk 01:17:08]} {[%emt 00:05:23]} Nc5 {[%clk 01:08:18]}
{[%emt 00:01:17]} 22. Nxc5 {[%clk 01:16:48]} {[%emt 00:00:50]} bxc5 {[%clk
01:08:41]} {[%emt 00:00:08]} 23. Bd3 {[%clk 01:14:52]} {[%emt 00:02:25]} g4
{[%clk 01:05:00]} {[%emt 00:04:11]} 24. Rxc5 {[%clk 01:14:59]} {[%emt
00:00:23]} g3 {[%clk 01:04:54]} {[%emt 00:00:36]} 25. hxg3 {[%clk 01:12:03]}
{[%emt 00:03:26]} fxg3 {[%clk 01:05:15]} {[%emt 00:00:09]} 26. f4 {[%clk
01:12:04]} {[%emt 00:00:29]} f5 {[%clk 01:05:35]} {[%emt 00:00:10]} 27. e5
{[%clk 01:12:25]} {[%emt 00:00:10]} Rb8 {[%clk 01:03:52]} {[%emt 00:02:13]} 28.
b3 {[%clk 01:12:13]} {[%emt 00:00:41]} Bh6 {[%clk 01:02:48]} {[%emt 00:01:35]}
29. Rc6 {[%clk 01:11:23]} {[%emt 00:01:19]} Bf8 {[%clk 01:02:06]} {[%emt
00:01:11]} 30. Rf3 {[%clk 01:11:14]} {[%emt 00:00:39]} Rg7 {[%clk 01:01:57]}
{[%emt 00:00:40]} 31. Bxf5 {[%clk 01:09:23]} {[%emt 00:02:21]} Rb5 {[%clk
01:02:05]} {[%emt 00:00:23]} 32. Bd3 {[%clk 01:09:26]} {[%emt 00:00:25]} Rb4
{[%clk 01:01:36]} {[%emt 00:01:01]} 33. Bc4 {[%clk 01:09:22]} {[%emt 00:00:33]}
Kh8 {[%clk 01:01:42]} {[%emt 00:00:24]} 34. d6 {[%clk 01:09:03]} {[%emt
00:00:49]} cxd6 {[%clk 01:00:34]} {[%emt 00:01:39]} 35. Rc8 {[%clk 01:09:18]}
{[%emt 00:00:13]} Rxc4 {[%clk 01:00:33]} {[%emt 00:00:32]} 36. Rxf8+ {[%clk
01:09:40]} {[%emt 00:00:07]} 1-0

[Event "Juniorallsvenskan 2019, Division 1 and 2"]
[Site "Molnlycke kulturhus, Biblioteksgatan 2, Molnlycke, Sweden"]
[Date "2019.11.24"]
[Round "5.20"]
[White "Fridman, Arvid"]
[Black "Ekberg, Karl"]
[Result "0-1"]
[TimeControl "90 minutes + 30 seconds per move from move one"]
[WhiteFideId "1758632"]
[BlackFideId "1726277"]
[WhiteElo "1596"]
[BlackElo "1867"]

1. d4 {[%clk 01:30:25]} {[%emt 00:00:35]} d5 {[%clk 01:30:48]} {[%emt
00:00:12]} 2. c4 {[%clk 01:30:50]} {[%emt 00:00:06]} c6 {[%clk 01:31:07]}
{[%emt 00:00:10]} 3. Nc3 {[%clk 01:31:06]} {[%emt 00:00:13]} Nf6 {[%clk
01:31:21]} {[%emt 00:00:16]} 4. Bf4 {[%clk 01:31:31]} {[%emt 00:00:06]} e6
{[%clk 01:31:01]} {[%emt 00:00:49]} 5. c5 {[%clk 01:31:54]} {[%emt 00:00:07]}
Be7 {[%clk 01:29:02]} {[%emt 00:02:29]} 6. Nf3 {[%clk 01:31:38]} {[%emt
00:00:47]} O-O {[%clk 01:27:45]} {[%emt 00:01:47]} 7. h3 {[%clk 01:31:56]}
{[%emt 00:00:12]} Re8 {[%clk 01:18:19]} {[%emt 00:09:55]} 8. e3 {[%clk
01:31:28]} {[%emt 00:00:57]} Nfd7 {[%clk 01:13:35]} {[%emt 00:05:15]} 9. Bd3
{[%clk 01:30:12]} {[%emt 00:01:47]} Bxc5 {[%clk 01:09:11]} {[%emt 00:04:54]} 10.
Bxb8 {[%clk 01:28:30]} {[%emt 00:02:12]} Rxb8 {[%clk 01:06:59]} {[%emt
00:02:42]} 11. dxc5 {[%clk 01:25:58]} {[%emt 00:03:02]} e5 {[%clk 01:05:32]}
{[%emt 00:01:57]} 12. Be2 {[%clk 01:24:52]} {[%emt 00:01:36]} Nxc5 {[%clk
01:01:36]} {[%emt 00:04:26]} 13. O-O {[%clk 01:24:17]} {[%emt 00:01:05]} e4
{[%clk 00:59:06]} {[%emt 00:03:00]} 14. Nd4 {[%clk 01:23:57]} {[%emt 00:00:50]}
Qg5 {[%clk 00:55:34]} {[%emt 00:04:02]} 15. Bg4 {[%clk 01:22:15]} {[%emt
00:02:12]} f5 {[%clk 00:55:33]} {[%emt 00:00:30]} 16. Bh5 {[%clk 01:19:53]}
{[%emt 00:02:53]} Rf8 {[%clk 00:49:07]} {[%emt 00:06:56]} 17. Kh1 {[%clk
01:10:30]} {[%emt 00:09:54]} Rf6 {[%clk 00:48:21]} {[%emt 00:01:15]} 18. Rg1
{[%clk 01:09:06]} {[%emt 00:01:54]} Nd3 {[%clk 00:44:40]} {[%emt 00:04:10]} 19.
Qe2 {[%clk 01:04:11]} {[%emt 00:05:25]} g6 {[%clk 00:42:02]} {[%emt 00:03:08]}
20. g4 {[%clk 01:03:52]} {[%emt 00:00:49]} f4 {[%clk 00:42:12]} {[%emt
00:00:20]} 21. f3 {[%clk 01:01:02]} {[%emt 00:03:21]} fxe3 {[%clk 00:36:48]}
{[%emt 00:05:53]} 22. Qh2 {[%clk 00:59:03]} {[%emt 00:02:29]} Nf2+ {[%clk
00:28:06]} {[%emt 00:09:11]} 23. Kg2 {[%clk 00:58:33]} {[%emt 00:00:57]} Qf4
{[%clk 00:27:00]} {[%emt 00:01:39]} 24. Qxf4 {[%clk 00:52:11]} {[%emt
00:06:54]} Rxf4 {[%clk 00:27:19]} {[%emt 00:00:11]} 25. Kg3 {[%clk 00:52:09]}
{[%emt 00:00:32]} Rf8 {[%clk 00:26:23]} {[%emt 00:01:25]} 26. Bxg6 {[%clk
00:51:31]} {[%emt 00:01:09]} hxg6 {[%clk 00:26:47]} {[%emt 00:00:05]} 27. fxe4
{[%clk 00:51:07]} {[%emt 00:00:54]} dxe4 {[%clk 00:23:14]} {[%emt 00:04:04]} 28.
Rge1 {[%clk 00:49:49]} {[%emt 00:01:48]} c5 {[%clk 00:19:46]} {[%emt 00:03:58]}
29. Nb3 {[%clk 00:47:52]} {[%emt 00:02:25]} Rf3+ {[%clk 00:11:50]} {[%emt
00:08:27]} 30. Kg2 {[%clk 00:47:03]} {[%emt 00:01:19]} Nd3 {[%clk 00:12:12]}
{[%emt 00:00:07]} 31. Red1 {[%clk 00:45:26]} {[%emt 00:02:09]} e2 {[%clk
00:10:24]} {[%emt 00:02:17]} 32. Nxe2 {[%clk 00:44:54]} {[%emt 00:01:03]} Rf2+
{[%clk 00:10:48]} {[%emt 00:00:06]} 0-1

[Event "Juniorallsvenskan 2019, Division 1 and 2"]
[Site "Molnlycke kulturhus, Biblioteksgatan 2, Molnlycke, Sweden"]
[Date "2019.11.24"]
[Round "5.21"]
[White "Klosinski, Daniel"]
[Black "Jonsson, Filip"]
[Result "0-1"]
[TimeControl "90 minutes + 30 seconds per move from move one"]
[WhiteFideId "1726323"]
[BlackFideId "1739441"]
[WhiteElo "1742"]
[BlackElo "1952"]

1. e4 {[%clk 01:30:58]} {[%emt 00:00:01]} e6 {[%clk 01:30:52]} {[%emt
00:00:09]} 2. d4 {[%clk 01:31:21]} {[%emt 00:00:06]} d5 {[%clk 01:31:18]}
{[%emt 00:00:04]} 3. Nd2 {[%clk 01:31:47]} {[%emt 00:00:05]} Nf6 {[%clk
01:31:43]} {[%emt 00:00:04]} 4. e5 {[%clk 01:31:48]} {[%emt 00:00:29]} Nfd7
{[%clk 01:32:07]} {[%emt 00:00:06]} 5. Bd3 {[%clk 01:32:09]} {[%emt 00:00:09]}
c5 {[%clk 01:32:33]} {[%emt 00:00:04]} 6. c3 {[%clk 01:32:25]} {[%emt
00:00:14]} Nc6 {[%clk 01:32:58]} {[%emt 00:00:04]} 7. Ne2 {[%clk 01:32:35]}
{[%emt 00:00:21]} cxd4 {[%clk 01:33:23]} {[%emt 00:00:06]} 8. cxd4 {[%clk
01:32:57]} {[%emt 00:00:08]} f6 {[%clk 01:33:49]} {[%emt 00:00:03]} 9. exf6
{[%clk 01:33:18]} {[%emt 00:00:08]} Nxf6 {[%clk 01:34:17]} {[%emt 00:00:04]} 10.
Nf3 {[%clk 01:32:46]} {[%emt 00:01:02]} Bd6 {[%clk 01:34:42]} {[%emt 00:00:04]}
11. O-O {[%clk 01:26:31]} {[%emt 00:06:45]} Qc7 {[%clk 01:35:06]} {[%emt
00:00:06]} 12. Ng3 {[%clk 01:24:15]} {[%emt 00:02:46]} O-O {[%clk 01:33:59]}
{[%emt 00:01:37]} 13. Re1 {[%clk 01:21:17]} {[%emt 00:03:28]} e5 {[%clk
01:27:28]} {[%emt 00:07:01]} 14. dxe5 {[%clk 01:20:45]} {[%emt 00:01:02]} Nxe5
{[%clk 01:27:49]} {[%emt 00:00:09]} 15. Nxe5 {[%clk 01:13:47]} {[%emt
00:07:28]} Bxe5 {[%clk 01:28:00]} {[%emt 00:00:19]} 16. Qb3 {[%clk 01:13:53]}
{[%emt 00:00:25]} Qd6 {[%clk 01:24:44]} {[%emt 00:03:45]} 17. Bd2 {[%clk
01:12:35]} {[%emt 00:01:47]} a5 {[%clk 01:17:47]} {[%emt 00:07:29]} 18. Bc3
{[%clk 01:08:54]} {[%emt 00:04:10]} a4 {[%clk 01:11:32]} {[%emt 00:06:45]} 19.
Bxe5 {[%clk 01:07:32]} {[%emt 00:01:53]} Qxe5 {[%clk 01:11:41]} {[%emt
00:00:21]} 20. Qb4 {[%clk 01:06:51]} {[%emt 00:01:10]} Qg5 {[%clk 01:11:05]}
{[%emt 00:01:05]} 21. f4 {[%clk 01:03:34]} {[%emt 00:03:48]} Qh4 {[%clk
01:10:12]} {[%emt 00:01:22]} 22. Re5 {[%clk 01:00:27]} {[%emt 00:03:38]} Bd7
{[%clk 01:03:17]} {[%emt 00:07:25]} 23. Bf5 {[%clk 00:46:40]} {[%emt 00:14:17]}
Bc6 {[%clk 00:59:54]} {[%emt 00:03:53]} 24. Be6+ {[%clk 00:46:25]} {[%emt
00:00:45]} Kh8 {[%clk 00:59:15]} {[%emt 00:01:09]} 25. Nf5 {[%clk 00:45:28]}
{[%emt 00:01:27]} Qg4 {[%clk 00:55:15]} {[%emt 00:04:30]} 26. Nd6 {[%clk
00:39:25]} {[%emt 00:06:32]} Qh4 {[%clk 00:54:29]} {[%emt 00:01:16]} 27. g3
{[%clk 00:38:57]} {[%emt 00:00:59]} Qh6 {[%clk 00:54:46]} {[%emt 00:00:12]} 28.
Nf7+ {[%clk 00:38:25]} {[%emt 00:01:03]} Rxf7 {[%clk 00:55:04]} {[%emt
00:00:13]} 29. Bxf7 {[%clk 00:38:43]} {[%emt 00:00:11]} Ng4 {[%clk 00:55:14]}
{[%emt 00:00:20]} 30. Bh5 {[%clk 00:37:01]} {[%emt 00:02:11]} Nxe5 {[%clk
00:55:08]} {[%emt 00:00:37]} 31. fxe5 {[%clk 00:35:43]} {[%emt 00:01:49]} Qxh5
{[%clk 00:55:25]} {[%emt 00:00:11]} 32. Rf1 {[%clk 00:36:09]} {[%emt 00:00:05]}
h6 {[%clk 00:54:38]} {[%emt 00:01:16]} 33. e6 {[%clk 00:36:14]} {[%emt
00:00:27]} d4 {[%clk 00:43:12]} {[%emt 00:11:55]} 34. e7 {[%clk 00:29:39]}
{[%emt 00:07:05]} Qe2 {[%clk 00:42:54]} {[%emt 00:00:48]} 35. Rf2 {[%clk
00:28:40]} {[%emt 00:01:29]} Qe4 {[%clk 00:42:50]} {[%emt 00:00:33]} 36. Kf1
{[%clk 00:28:17]} {[%emt 00:00:53]} Re8 {[%clk 00:40:37]} {[%emt 00:02:43]} 37.
Rf8+ {[%clk 00:28:03]} {[%emt 00:00:45]} Kh7 {[%clk 00:40:54]} {[%emt
00:00:13]} 38. Rf7 {[%clk 00:27:44]} {[%emt 00:00:49]} d3 {[%clk 00:40:26]}
{[%emt 00:00:58]} 39. Rxg7+ {[%clk 00:24:46]} {[%emt 00:03:28]} Kxg7 {[%clk
00:40:33]} {[%emt 00:00:23]} 40. Qc3+ {[%clk 00:25:07]} {[%emt 00:00:09]} Kh7
{[%clk 00:40:52]} {[%emt 00:00:06]} 41. Qf6 {[%clk 00:25:20]} {[%emt 00:00:22]}
Qg2+ {[%clk 00:41:15]} {[%emt 00:00:07]} 42. Ke1 {[%clk 00:25:47]} {[%emt
00:00:04]} Qe2# {[%clk 00:41:35]} {[%emt 00:00:09]} 0-1

[Event "Juniorallsvenskan 2019, Division 1 and 2"]
[Site "Molnlycke kulturhus, Biblioteksgatan 2, Molnlycke, Sweden"]
[Date "2019.11.24"]
[Round "5.22"]
[White "Derdic, Valentin"]
[Black "Johansson-Ohman, Linnea"]
[Result "0-1"]
[TimeControl "90 minutes + 30 seconds per move from move one"]
[WhiteFideId "1763687"]
[BlackFideId "1737260"]
[WhiteElo "1647"]
[BlackElo "1660"]

1. e4 {[%clk 01:30:49]} {[%emt 00:00:08]} c6 {[%clk 01:30:49]} {[%emt
00:00:12]} 2. d4 {[%clk 01:31:12]} {[%emt 00:00:07]} d5 {[%clk 01:31:13]}
{[%emt 00:00:07]} 3. exd5 {[%clk 01:31:24]} {[%emt 00:00:18]} cxd5 {[%clk
01:31:36]} {[%emt 00:00:08]} 4. c4 {[%clk 01:31:42]} {[%emt 00:00:11]} Nf6
{[%clk 01:31:04]} {[%emt 00:01:02]} 5. Nc3 {[%clk 01:31:53]} {[%emt 00:00:19]}
e6 {[%clk 01:29:59]} {[%emt 00:01:36]} 6. Nf3 {[%clk 01:31:47]} {[%emt
00:00:35]} Nc6 {[%clk 01:28:54]} {[%emt 00:01:35]} 7. Bg5 {[%clk 01:28:55]}
{[%emt 00:03:22]} Be7 {[%clk 01:26:46]} {[%emt 00:02:39]} 8. Bd3 {[%clk
01:26:34]} {[%emt 00:02:50]} O-O {[%clk 01:19:33]} {[%emt 00:07:44]} 9. a3
{[%clk 01:24:47]} {[%emt 00:02:15]} dxc4 {[%clk 01:18:05]} {[%emt 00:02:00]} 10.
Bxc4 {[%clk 01:25:04]} {[%emt 00:00:11]} Nd5 {[%clk 01:13:14]} {[%emt
00:05:23]} 11. Bxd5 {[%clk 01:20:12]} {[%emt 00:05:21]} exd5 {[%clk 01:13:26]}
{[%emt 00:00:19]} 12. Bxe7 {[%clk 01:20:24]} {[%emt 00:00:18]} Qxe7+ {[%clk
01:01:26]} {[%emt 00:12:29]} 13. Qe2 {[%clk 01:20:14]} {[%emt 00:00:40]} Qxe2+
{[%clk 00:55:47]} {[%emt 00:06:10]} 14. Nxe2 {[%clk 01:20:10]} {[%emt
00:00:33]} Re8 {[%clk 00:55:48]} {[%emt 00:00:30]} 15. b4 {[%clk 01:12:01]}
{[%emt 00:08:39]} Bf5 {[%clk 00:42:51]} {[%emt 00:13:27]} 16. Kd2 {[%clk
01:11:17]} {[%emt 00:01:10]} Re7 {[%clk 00:38:34]} {[%emt 00:04:50]} 17. Nh4
{[%clk 01:08:00]} {[%emt 00:03:47]} Rae8 {[%clk 00:27:50]} {[%emt 00:11:15]} 18.
Rhe1 {[%clk 01:07:25]} {[%emt 00:01:04]} Bg4 {[%clk 00:26:38]} {[%emt
00:01:42]} 19. f3 {[%clk 01:07:10]} {[%emt 00:00:45]} Bd7 {[%clk 00:25:45]}
{[%emt 00:01:22]} 20. g3 {[%clk 01:03:58]} {[%emt 00:03:44]} g5 {[%clk
00:24:19]} {[%emt 00:01:56]} 0-1